Cogmind - Beta 13 @@@ ROGUE MODE // 2024.06.26 @ 01:12:44 Player: MooMoo Result: Destroyed by S-27 Virus with Autogun Performance ------------- Evolutions (3) 1500 Regions Visited (7) 1400 Robots Destroyed (55) 275 Value Destroyed (1758) 1758 Prototype IDs (2) 40 Alien Tech Used (0) 0 Bonus (-539) -539 TOTAL SCORE: 4434 Bonus ------- Follower Combat Kills 223 Friendly Fire -762 Cogmind --------- Core Integrity 0/700 Matter 297/300 Energy 56/100 System Corruption 16% Temperature Cool (0) Movement Treading (145) Location -7/Lower Caves Parts ------- > --- POWER (2) -------- (None) > --- PROPULSION (3) --- Advanced Treads > --- UTILITY (5) ------ Improved Terrain Scan Processor Improved Terrain Scan Processor Salvage Targeting Computer > --- WEAPON (3) ------- Heavy Ion Cannon > --- INVENTORY (5) ---- High-capacity Storage Unit Faulty Mini Assault Cannon Remote Datajack Welding Torch Peak State ------------ > --- POWER ------------ Cooled Ion Engine Cooled Ion Engine > --- PROPULSION ------- Linear Gravjet Linear Gravjet Linear Gravjet > --- UTILITY ---------- Improved Terrain Scan Processor Improved Targeting Computer Melee Analysis Suite Advanced ECM Suite > --- WEAPON ----------- Powered Hammer Powered Hammer Powered Hammer > --- INVENTORY -------- High-capacity Storage Unit Structural Scanner Improved Terrain Scan Processor Mini Assault Cannon Remote Datajack [Rating: 49] Favorites ----------- Power Improved Ion Engine Engine Improved Ion Engine Power Core Neutrino Core Propulsion Light Treads Treads Light Treads Leg Aluminum Leg Hover Unit Linear Gravjet Utility Improved Targeting Computer Device Sensor Array Storage Small Storage Unit Processor Improved Targeting Computer Weapon Powered Hammer Energy Gun Beam Rifle Energy Cannon Heavy Particle Cannon Ballistic Gun Flak Gun Launcher Mini Grenade Launcher Special Weapon Welding Torch Impact Weapon Powered Hammer Special Melee Weapon Improved Datajack Build | -11 -10 -9 -9 -8 -7 -7 -7 ------- Run | Yrd Mat Mat Sto Mat Fac Low Low Slots Evolved 6 | . . 2 . 2 2 . . Power 1 | . . . . 1 . . . Propulsion 1 | . . 1 . . . . . Utility 3 | . . 1 . 1 1 . . Weapon 1 | . . . . . 1 . . Parts Attached 70 | 5 3 8 15 10 21 6 2 Power 10 | 1 1 1 1 1 4 1 . Engine 9 | 1 1 1 1 1 4 . . Core 1 | . . . . . . 1 . Reactor . | . . . . . . . . Propulsion 21 | 2 . 4 6 2 5 1 1 Treads 15 | 2 . 2 5 2 2 1 1 Leg 3 | . . 2 1 . . . . Wheel . | . . . . . . . . Hover 3 | . . . . . 3 . . Flight . | . . . . . . . . Utility 15 | . 2 1 1 4 4 3 . Device 7 | . 1 . 1 2 2 1 . Storage 3 | . 1 . . 2 . . . Processor 5 | . . 1 . . 2 2 . Hackware . | . . . . . . . . Protection . | . . . . . . . . Artifact . | . . . . . . . . Weapon 24 | 2 . 2 7 3 8 1 1 Energy Gun 4 | . . 1 3 . . . . Energy Cannon 3 | . . . . 1 1 . 1 Ballistic Gun 6 | 2 . 1 1 . 1 1 . Ballistic Cannon . | . . . . . . . . Launcher 4 | . . . 3 1 . . . Special Weapon 2 | . . . . . 2 . . Impact Weapon 3 | . . . . . 3 . . Slashing Weapon . | . . . . . . . . Piercing Weapon . | . . . . . . . . Special Melee Weapon 2 | . . . . 1 1 . . Unidentified Prototypes 2 | . . . 1 . 1 . . Parts Lost 41 | . 1 4 11 1 14 9 1 Power 7 | . 1 1 1 . 3 1 . Propulsion 12 | . . 1 4 . 5 2 . Utility 7 | . . . 1 . 3 3 . Weapon 15 | . . 2 5 1 3 3 1 Highest Loss Streak 9 | . 1 4 9 1 4 5 1 To Critical Strikes . | . . . . . . . . Average Slot Usage (%) 80 | . 94 86 86 95 92 49 45 Engine 9 | . 10 9 10 15 14 . . Treads 17 | . 28 24 23 25 16 4 7 Device 11 | . 12 11 8 16 18 3 . Storage 6 | . 14 11 11 9 5 . . Processor 12 | . . 6 11 9 10 22 23 Energy Gun 3 | . . 5 10 8 . . . Energy Cannon 2 | . . . . . 9 . 7 Ballistic Gun 7 | . 28 15 8 . 5 3 . Launcher 1 | . . . 1 7 1 . . Impact Weapon 4 | . . . . . 5 12 6 Naked Turns . | . . . . . . . . Heaviest Build 61 | 6 14 18 24 44 61 17 11 Greatest Support 65 | 40 40 60 60 65 65 28 22 Greatest Overweight (x) 15 | . . 4 3 . 15 5 . Average Overweight (x) . | . . . . . . 1 . Largest Inventory Capacity 15 | 5 8 8 8 15 15 5 5 Average Capacity 9 | 5 8 8 8 12 12 5 5 Most Carried 15 | 5 8 8 8 15 15 5 4 Average Carried 8 | 3 7 7 7 10 11 4 4 Final Capacity 15 | 5 8 8 8 15 5 5 5 Final Carried 14 | 5 8 8 6 14 5 4 4 Class Distribution -------------------- 44% | Mutant 17% | Scavenger-Mutant 11% | Gunner 10% | Scavenger-Gladiator 9% | Gladiator 7% | Bomber Dominant Class ---------------- Mutant | -10/Materials Mutant | -9/Materials Scavenger-Mutant | -9/Storage Scavenger-Mutant | -8/Materials Gunner | -7/Factory Scavenger-Gladiator | -7/Lower Caves Mutant | -7/Lower Caves Resources | -11 -10 -9 -9 -8 -7 -7 -7 ----------- Run | Yrd Mat Mat Sto Mat Fac Low Low Matter Collected 1006 | 106 33 260 182 80 166 157 22 Remotely . | . . . . . . . . Salvage Created 1898 | . 204 273 510 224 539 120 28 Parts 95 | . 12 19 17 20 24 2 1 Haulers Intercepted 1 | . . . . 1 . . . Recyclers Shooed . | . . . . . . . . Parts Field Recycled . | . . . . . . . . Retrieved Matter . | . . . . . . . . Parts Self-Destructed 2 | . . . . . . 1 1 Prevented 2 | . . . . . . 2 . Kills | -11 -10 -9 -9 -8 -7 -7 -7 ------- Run | Yrd Mat Mat Sto Mat Fac Low Low Combat Hostiles Destroyed 44 | . 5 5 8 5 16 4 1 Melee 5 | . . . . . 3 2 . Guns 18 | . 5 5 6 1 1 . . Cannons 7 | . . . . . 6 . 1 AOE 9 | . . . 2 4 3 . . Classes Destroyed 14 | . 1 2 4 3 4 . . Worker 3 | . . . 2 . 1 . . Builder 3 | . . . . 2 1 . . Hauler 1 | . . . . 1 . . . Recycler 2 | . . . 2 . . . . Mechanic 1 | . . . . 1 . . . Operator 1 | . . 1 . . . . . Drone 6 | . . . 6 . . . . Swarmer 12 | . . . 2 . 6 3 1 Cutter 3 | . . . . . 3 . . Grunt 14 | . 5 2 2 3 2 . . Brawler 2 | . . . . . 2 . . Duelist 1 | . . . . . 1 . . Sentry 11 | . . 3 4 2 1 1 . Programmer 1 | . . . . . 1 . . Best Kill Streak 8 | . 3 3 8 6 4 3 1 Combat Bots Only 6 | . 3 3 6 3 3 3 1 Max Kills in Single Turn 6 | . 1 1 6 2 2 1 1 Gunslinging . | . . . . . . . . Exploded 2 | . . . 1 2 1 . . Melee 1 | . . . . . 1 1 . Uniques/NPCs Destroyed . | . . . . . . . . Combat | -11 -10 -9 -9 -8 -7 -7 -7 -------- Run | Yrd Mat Mat Sto Mat Fac Low Low Hostile Shots Fired 534 | . 37 66 75 37 169 131 19 Missed 160 | . 14 17 14 11 56 41 7 Damage Taken 5308 | . 290 666 956 445 1872 902 177 Core 1037 | . 22 99 138 63 339 330 46 Absorbed by Shields . | . . . . . . . . Core Remaining (%) 79 | 100 91 . 40 88 . . . Volleys Fired 99 | . 16 26 25 12 16 . 4 Largest 3 | . 2 2 2 2 3 . 1 Hottest 166 | . 40 60 93 86 166 . 65 Shots Fired 186 | . 32 46 36 22 43 3 4 Gun 142 | . 32 46 34 11 16 3 . Cannon 30 | . . . . . 26 . 4 Launcher 14 | . . . 2 11 1 . . Special . | . . . . . . . . Kinetic 90 | . 32 29 10 . 16 3 . Thermal 55 | . . . 24 11 16 . 4 Explosive 14 | . . . 2 11 1 . . Electromagnetic 27 | . . 17 . . 10 . . Robot Hit Streak 16 | . 6 13 16 7 8 2 3 Robot Miss Streak 5 | . 3 2 1 3 5 . 1 Penetration Max . | . . . . . . . . Secondary Targets 3 | . 2 1 . . . . . Max Gunslinging Chain 1 | . 1 1 . . . . . Shots Hit Robots 165 | . 22 35 29 14 47 15 3 Core Hits 107 | . 12 14 29 19 31 1 1 Critical Kills 1 | . . . . . 1 . . Critical Parts Destroyed 2 | . 1 . . . . 1 . Critical Strikes 4 | . 1 . 1 . 1 1 . Burn 1 | . . . 1 . . . . Destroy 1 | . 1 . . . . . . Smash 2 | . . . . . 1 1 . Melee Attacks 42 | . . . . . 25 17 . Impact 42 | . . . . . 25 17 . Slashing . | . . . . . . . . Piercing . | . . . . . . . . Sneak Attacks 1 | . . . . . 1 . . Combat Hostiles . | . . . . . . . . Follow-up Attacks 9 | . . . . . 7 2 . Damage Inflicted 4420 | . 270 359 853 642 1644 569 83 Guns 1453 | . 270 359 480 86 240 18 . Cannons 592 | . . . . . 509 . 83 Explosions 1120 | . . . 373 555 192 . . Melee 1252 | . . . . . 703 549 . Ramming 3 | . . . . 1 . 2 . Kinetic 851 | . 270 186 137 . 240 18 . Thermal 862 | . . . 343 86 350 . 83 Explosive 1120 | . . . 373 555 192 . . Electromagnetic 332 | . . 173 . . 159 . . Impact 1252 | . . . . . 703 549 . Slashing . | . . . . . . . . Piercing . | . . . . . . . . Highest Corruption 16 | . . . . 2 11 16 16 Average Corruption 10 | . . . . 2 8 15 16 Corruption Purged . | . . . . . . . . Corruption Blocked . | . . . . . . . . Effects 47 | . . . . 4 9 30 4 Message Errors 15 | . . . . 1 4 9 1 Matter Fused 8 | . . . . . 1 6 1 Heat Flow Errors 4 | . . . . . . 4 . Energy Discharges 4 | . . . . . . 2 2 Parts Rejected 1 | . . . . . 1 . . Parts Fused 1 | . . . . 1 . . . Data Loss (minor) 6 | . . . . 2 . 4 . Data Loss (major) 4 | . . . . . 3 1 . Misfires 3 | . . . . . . 3 . Alerts 1 | . . . . . . 1 . Overload Shots . | . . . . . . . . Overflow Damage 339 | . . . 7 . 208 121 3 Projectiles 6 | . . . . . 3 . 3 Explosions 15 | . . . 7 . 8 . . Melee 318 | . . . . . 197 121 . Knockbacks 7 | . . . . . 4 3 . Impact 6 | . . . . . 3 3 . Kinetic . | . . . . . . . . Secondary 1 | . . . . . 1 . . Self-Inflicted Damage 188 | . . . 2 51 134 1 . Shots 7 | . . . 1 4 2 . . Rammed 2 | . . . . 1 . 1 . Targets Rammed 2 | . . . . 1 . 1 . Kicked . | . . . . . . . . Crushed . | . . . . . . . . Highest Temperature 309 | . 22 78 309 25 228 257 . Average Temperature 89 | . 9 35 151 6 82 110 . Received Heat Transfer 1329 | . 162 288 342 216 159 162 . Effects 3 | . . . 3 . . . . Energy Bleed 1 | . . . 1 . . . . Interference 2 | . . . 2 . . . . Siege Activations . | . . . . . . . . Robots Corrupted . | . . . . . . . . Combat Hostiles . | . . . . . . . . Parts Fried 5 | . . . . . 5 . . Impact Corruptions 17 | . . . . . 10 7 . Robots Melted . | . . . . . . . . Combat Hostiles . | . . . . . . . . Parts Melted 1 | . . . 1 . . . . Heat Transferred 1702 | . . . 851 222 518 . 111 Parts Sabotaged . | . . . . . . . . Parts Stolen . | . . . . . . . . Parts Stripped . | . . . . . . . . Power Chain Reactions . | . . . . . . . . Alert | -11 -10 -9 -9 -8 -7 -7 -7 ------- Run | Yrd Mat Mat Sto Mat Fac Low Low Peak Influence 415 | . 140 198 415 345 248 . . Initial 133 | . . 59 83 133 86 . . Average 158 | . 71 126 236 241 124 . . Maximum Alert Level 2 | . . . 2 1 1 . . Low Security (%) 67 | 100 100 100 30 33 79 . . Level 1 30 | . . . 60 66 20 . . Level 2 1 | . . . 8 . . . . Level 3 . | . . . . . . . . Level 4 . | . . . . . . . . Level 5 . | . . . . . . . . High Security . | . . . . . . . . Max Security . | . . . . . . . . Squads Dispatched 5 | . 1 1 . 1 2 . . Investigation 1 | . 1 . . . . . . Extermination 1 | . . . . . 1 . . Reinforcement 3 | . . 1 . 1 1 . . Assault . | . . . . . . . . Garrison . | . . . . . . . . Intercept . | . . . . . . . . Searches Triggered . | . . . . . . . . Construction Impeded . | . . . . . . . . Haulers Reinforced . | . . . . . . . . Active Scanning Responses . | . . . . . . . . Cargo Convoy Interrupts 1 | . . . . . 1 . . Stealth | -11 -10 -9 -9 -8 -7 -7 -7 --------- Run | Yrd Mat Mat Sto Mat Fac Low Low Distress Signals 5 | . 2 . 1 1 1 . . Communications Jammed . | . . . . . . . . Distress Signals . | . . . . . . . . Times Spotted 96 | . 10 9 18 11 35 9 4 Peak Tracking Total 13 | . 4 5 9 4 13 5 4 Tactical Retreats 2 | . 1 . . . . 1 . Traps | -11 -10 -9 -9 -8 -7 -7 -7 ------- Run | Yrd Mat Mat Sto Mat Fac Low Low Traps Triggered 7 | . 1 . 3 1 2 . . Indirectly . | . . . . . . . . Trap Hack Attempts . | . . . . . . . . Triggered . | . . . . . . . . Disarmed . | . . . . . . . . Reprogrammed . | . . . . . . . . Reused . | . . . . . . . . Traps Extracted . | . . . . . . . . Installed . | . . . . . . . . Triggered . | . . . . . . . . Machines | -11 -10 -9 -9 -8 -7 -7 -7 ---------- Run | Yrd Mat Mat Sto Mat Fac Low Low Machines Disabled 7 | . . . 3 . 4 . . Max in Single Turn 3 | . . . 1 . 3 . . Machines Repaired . | . . . . . . . . Machines Dismantled . | . . . . . . . . Machines Sabotaged . | . . . . . . . . Overloaded Fab Kills . | . . . . . . . . Hacking | -11 -10 -9 -9 -8 -7 -7 -7 --------- Run | Yrd Mat Mat Sto Mat Fac Low Low Machines Accessed 11 | . 2 4 1 1 3 . . Terminals 9 | . 2 4 1 1 1 . . Fabricators 1 | . . . . . 1 . . Repair Stations . | . . . . . . . . Recycling Units 1 | . . . . . 1 . . Scanalyzers . | . . . . . . . . Garrison Access . | . . . . . . . . Total Hacks 36 | . 9 10 2 2 13 . . Successful 17 | . 4 4 . 1 8 . . Failed 19 | . 5 6 2 1 5 . . Catastrophic 1 | . . . . . 1 . . Database Lockouts . | . . . . . . . . Manual . | . . . . . . . . Terminals 27 | . 9 10 2 2 4 . . Fabricators 1 | . . . . . 1 . . Repair Stations . | . . . . . . . . Recycling Units 8 | . . . . . 8 . . Scanalyzers . | . . . . . . . . Garrison Access . | . . . . . . . . Terminal Hacks 10 | . 4 4 . 1 1 . . Record 3 | . 1 . . 1 1 . . Robot Analysis 2 | . 1 1 . . . . . Emergency Access Points 1 | . 1 . . . . . . Locate Traps 1 | . . 1 . . . . . Recall Investigation 1 | . 1 . . . . . . Zone Layout 2 | . . 2 . . . . . Fabricator Hacks 1 | . . . . . 1 . . Build 1 | . . . . . 1 . . Repair Station Hacks . | . . . . . . . . Recycling Unit Hacks 6 | . . . . . 6 . . Recycle Component 1 | . . . . . 1 . . Process 1 | . . . . . 1 . . Report Inventory 2 | . . . . . 2 . . Retrieve Matter 2 | . . . . . 2 . . Scanalyzer . | . . . . . . . . Garrison Access Hacks . | . . . . . . . . Unauthorized Hacks . | . . . . . . . . Terminals . | . . . . . . . . Fabricators . | . . . . . . . . Repair Stations . | . . . . . . . . Recycling Units . | . . . . . . . . Scanalyzers . | . . . . . . . . Garrison Access . | . . . . . . . . Data Cores Recovered 1 | . . 1 . . . . . Used . | . . . . . . . . Hacking Detections 10 | . 2 4 1 1 2 . . Full Trace Events . | . . . . . . . . Feedback Events . | . . . . . . . . Feedback Blocked . | . . . . . . . . Robot Schematics Acquired . | . . . . . . . . Robots Built . | . . . . . . . . Authchips . | . . . . . . . . Time . | . . . . . . . . Total Robot Build Rating . | . . . . . . . . Part Schematics Acquired . | . . . . . . . . Parts Built 2 | . . . . . 2 . . Authchips . | . . . . . . . . Time 42 | . . . . . 42 . . Total Part Build Rating 8 | . . . . . 8 . . Parts Repaired . | . . . . . . . . Time . | . . . . . . . . Parts Recycled 1 | . . . . . 1 . . Recycled Matter 139 | . . . . . 139 . . Retrieved Matter 139 | . . . . . 139 . . Retrieved Components . | . . . . . . . . Parts Scanalyzed . | . . . . . . . . Part Schematics Acquired . | . . . . . . . . Parts Damaged . | . . . . . . . . Bothacking | -11 -10 -9 -9 -8 -7 -7 -7 ------------ Run | Yrd Mat Mat Sto Mat Fac Low Low Used RIF Installer . | . . . . . . . . Robots Hacked . | . . . . . . . . Non-combat . | . . . . . . . . Combat . | . . . . . . . . Robot Hacks Applied . | . . . . . . . . Relay Couplers Released . | . . . . . . . . Fabnet Peak Effective % . | . . . . . . . . Robots Rewired . | . . . . . . . . Allies Hacked . | . . . . . . . . Hacks Repelled . | . . . . . . . . Allies | -11 -10 -9 -9 -8 -7 -7 -7 -------- Run | Yrd Mat Mat Sto Mat Fac Low Low Total Allies 1 | . . . 1 . . . . Largest Group 1 | . . . 1 . . . . Highest-Rated Group 100 | . . . 100 . . . . Highest-Rated Ally 100 | . . . 100 . . . . Total Orders . | . . . . . . . . Ally Attacks 19 | . . . 19 . . . . Total Damage 949 | . . . 949 . . . . Kills 12 | . . . 12 . . . . Allies Corrupted . | . . . . . . . . Allies Melted . | . . . . . . . . Intel | -11 -10 -9 -9 -8 -7 -7 -7 ------- Run | Yrd Mat Mat Sto Mat Fac Low Low Robot Analysis Total 2 | . 1 1 . . . . . Derelict Logs Recovered 3 | . . . . . . 2 1 Drone Launches 16 | . . . 16 . . . . Drone Recoveries 2 | . . . 2 . . . . Exploration | -11 -10 -9 -9 -8 -7 -7 -7 ------------- Run | Yrd Mat Mat Sto Mat Fac Low Low Turns Passed 3710 | 71 323 353 593 458 1006 815 91 Spaces Moved 2020 | 41 167 160 301 245 602 443 61 Core 208 | 5 . 1 9 . 1 183 9 Treads 1601 | 36 167 121 291 245 429 260 52 Legs 39 | . . 38 1 . . . . Wheels . | . . . . . . . . Hover 172 | . . . . . 172 . . Flight . | . . . . . . . . Fastest Speed 32 | 50 160 160 120 155 32 50 50 Average Speed 152 | 146 160 167 159 159 129 171 130 Slowest Speed 800 | 160 160 250 200 160 800 300 145 Overloaded Moves . | . . . . . . . . Propulsion Burnouts . | . . . . . . . . Robots Hopped . | . . . . . . . . Cave-ins Triggered . | . . . . . . . . Exploration Rate (%) 30 | 5 33 15 80 20 14 61 15 Regions Visited 7 Branch Regions 3 Pre-discovered Areas 1 | . . . . . . . 1 Known Exits Taken 1 | . . . . . . 1 . Unknown Exits Taken 6 | 1 1 1 1 1 1 . . Scrap Searched 1 | . . . . . . . 1 Spaces Dug . | . . . . . . . . Terrain Destroyed 106 | . . . 16 72 18 . . Melee . | . . . . . . . . Projectile 1 | . . . . . 1 . . AOE 105 | . . . 16 72 17 . . Terrain Rammed . | . . . . . . . . Walls Destroyed . | . . . . . . . . Machines Disabled . | . . . . . . . . Actions | -11 -10 -9 -9 -8 -7 -7 -7 --------- Run | Yrd Mat Mat Sto Mat Fac Low Low Total 2406 | 50 194 201 375 289 761 469 67 Wait 112 | . 4 3 17 4 78 6 . Move 2013 | 40 166 159 300 244 601 442 61 Hop . | . . . . . . . . Pick Up 38 | 5 5 2 8 12 6 . . Fast Attach 33 | 5 1 5 5 3 7 5 2 Attach 25 | . 2 2 7 2 11 1 . Detach 2 | . . . . . 2 . . Swap 12 | . . 1 3 5 3 . . Drop 19 | . . 3 3 6 7 . . Fire 99 | . 16 26 25 12 16 . 4 Melee 31 | . . . . . 17 14 . Ram 1 | . . . . . . 1 . Kick . | . . . . . . . . Crush 1 | . . . . 1 . . . Escape Stasis 13 | . . . . . 13 . . Rewire . | . . . . . . . . Trap . | . . . . . . . . Miscellaneous 7 | . . . 7 . . . . Route ------- -11/Scrapyard -10/Materials -9/Materials -9/Storage -8/Materials -7/Factory -7/Lower Caves -7/Lower Caves History --------- Turn | Location | Event 9 | -11/Scrapyard | Discovered new exit (range 15) 72 | -11/Scrapyard | Entered Materials 308 | -10/Materials | Build established: Mutant 368 | -10/Materials | Discovered new exit (range 15) 395 | -10/Materials | Entered another Materials area 395 | -9/Materials | Evolved 2 slots: Propulsion x1, Utility x1 645 | -9/Materials | Lost 4 parts (1p1n2w) 730 | -9/Materials | Discovered new exit (range 12) 748 | -9/Materials | Entered Storage 797 | -9/Storage | Met 01-MTF 959 | -9/Storage | Lost 3 allies 1198 | -9/Storage | Core integrity fell below 50% 1219 | -9/Storage | Lost 11 allies 1250 | -9/Storage | Lost 9 parts (1p3n1u4w) 1315 | -9/Storage | Discovered new exit (range 16) 1341 | -9/Storage | Entered Materials 1341 | -8/Materials | Evolved 2 slots: Power x1, Utility x1 1725 | -8/Materials | Build established: Scavenger-Mutant 1750 | -8/Materials | Discovered new exit (range 11) 1799 | -8/Materials | Entered Factory 1799 | -7/Factory | Evolved 2 slots: Utility x1, Weapon x1 2115 | -7/Factory | Fabricated Imp. Deuterium Engine (x2) 2516 | -7/Factory | Lost 4 parts (1p1n1u1w) 2573 | -7/Factory | Lost 3 parts (1n1u1w) 2778 | -7/Factory | Discovered new exit (range 14) 2783 | -7/Factory | System corruption reached 10% 2804 | -7/Factory | Cargo convoy interrupted 2805 | -7/Factory | Entered Lower Caves 2819 | -7/Lower Caves | Encountered a Warlord checkpoint 2829 | -7/Lower Caves | Lost 4 parts (2p1n1u) 2857 | -7/Lower Caves | Core integrity fell below 50% 2863 | -7/Lower Caves | Build established: Gladiator 3213 | -7/Lower Caves | Build established: Scavenger-Gladiator 3280 | -7/Lower Caves | Attracted the attention of an 0b10 checkpoint 3309 | -7/Lower Caves | Core integrity fell below 20% 3342 | -7/Lower Caves | Lost 5 parts (1n2u2w) 3482 | -7/Lower Caves | Identified exit to Lower Caves 3503 | -7/Lower Caves | Learned Factory emergency access door positions 3593 | -7/Lower Caves | Build established: Mutant 3620 | -7/Lower Caves | Entered another Lower Caves area 3711 | -7/Lower Caves | Destroyed by S-27 Virus with Autogun Last Messages --------------- GOAL=ESCAPE 03624_ Searching scrap... 03624_ Found Adv. Treads. 03624_ Found Hvy. Ion Cannon. 03624_ Found 29 Matter. 03625_ Acquired 2 matter. 03625_ Acquired Adv. Treads. 03628_ Acquired Hvy. Ion Cannon. 03629_ Acquired 20 matter. 03639_ System corrupted: Energy discharge (-33). 03660_ Acquired derelict log, extracted data. World map updated: -7/Factory. 03666_ System corrupted: Energy discharge (-29). 03687_ System corrupted: Matter fused (-8). 03703_ Destroyed VTOL Module. 03704_ S-27 Virus destroyed. 03705_ Powered Hammer destroyed. 03707_ S-27 Virus destroyed. 03709_ P